[Event "ESP-ch U2000 2024"]
[Site "Albacete"]
[Date "2024.08.27"]
[Round "1.6"]
[White "Sierra Pena, Mario"]
[Black "Rios Torondell, Jaume"]
[Result "1-0"]
[ECO "A34"]
[WhiteElo "1971"]
[BlackElo "1835"]
[Annotator "TA"]
[PlyCount "65"]
[EventDate "2024.08.27"]
[EventType "swiss"]
[EventCountry "ESP"]
[SourceTitle "playchess.com"]
[Source "ChessBase"]
[SourceQuality "1"]
[TimeControl "5400+30"]

{[%evp 15,64,30,34,19,40,50,73,55,71,52,60,49,57,29,91,93,127,120,133,129,116,103,123,116,115,115,110,64,53,53,60,65,100,-6,0,-72,-68,-144,-145,-143,192,182,395,318,422,381,504,503,1318,1251,29999]} 1. c4 {[%emt 0:00:03]} c5 {[%emt 0:00:36]} 2. Nc3 {[%emt 0:00:10]} e6 {[%emt 0:01:38]} 3. g3 {[%emt 0:00:49]} Nc6 {[%emt 0:05:52]} 4. Bg2 {[%emt 0:00:13]} g6 {[%emt 0:01:28]} 5. d3 {[%emt 0:01:09]} Nf6 {[%emt 0:01:40]} 6. e4 {[%emt 0:00:52]} d6 {[%emt 0:03:52]} 7. Nge2 {[%emt 0:00:15]} Bg7 {[%emt 0:03:09]} 8. O-O {[%emt 0:00:31]} O-O {[%emt 0:00:50]} 9. a3 {[%emt 0:00:26][%cal Ob2b4]} Re8 {[%emt 0:04:21]} 10. Rb1 {[%emt 0:00:12]} a5 {[%emt 0:01:38]} 11. h3 {[%emt 0:01:31] White is better.} Bd7 {[%emt 0:02:58]} 12. Be3 {[%emt 0:01:22] Repels Nd4} e5 {[%emt 0:04:05]} 13. f4 {[%emt 0:05:21]} exf4 14. Bxf4 {[%emt 0:02:39][%cal Od1d2]} Ne5 {[%emt 0:06:06]} (14... Nh5 $11 {keeps the balance.}) 15. Qd2 $16 {[%emt 0:07:51]} Nh5 {[%emt 0:05:58]} 16. Bg5 {[%emt 0:07:25]} f6 {[%emt 0:04:53]} 17. Be3 {[%emt 0:00:47]} Bh8 {[%emt 0:03:05]} 18. Nd5 {[%emt 0:03:12] Threatens to win with g4.} Bc6 {[%emt 0:03:44]} 19. g4 {[%emt 0:11:43]} Bxd5 {[%emt 0:00:12]} 20. cxd5 Ng7 {[%emt 0:00:38]} 21. d4 {[%emt 0:10:10]} ({White should play} 21. Rbc1 $16) 21... Nc4 $14 {[%emt 0:00:02]} 22. Qc3 {[%emt 0:00:23]} Nxe3 {[%emt 0:04:05]} 23. Qxe3 {[%emt 0:00:03]} b6 {[%emt 0:02:44][%cal Of6f5] Black is weak on the light squares} 24. Qc3 {[%emt 0:13:34] [#] White is more active.} (24. Rf2 $16) 24... f5 $1 $11 {[%emt 0:02:51]} 25. Qf3 {[%emt 0:08:41]} (25. gxf5 Nxf5 26. Qf3 Qe7 (26... Bxd4+ 27. Nxd4 Nxd4 28. Qf7+ Kh8 29. Qf6+ Qxf6 30. Rxf6 $17) 27. exf5 Qxe2 28. fxg6 Bxd4+ 29. Kh1 Qxf3 (29... Bxb2 30. Qf7+ Kh8 31. Qxh7#) 30. gxh7+ Kxh7 31. Bxf3 Re3 $16) (25. Rf4 $11) (25. e5 Qh4) 25... Rxe4 $17 {[%emt 0:06:47]} ({Not} 25... fxe4 26. Qf7#) 26. Ng3 {[%emt 0:00:54]} (26. gxf5 $15 gxf5 27. dxc5 bxc5 28. Ng3) 26... Rxd4 {[%emt 0:08:06]} 27. gxf5 {[%emt 0:00:07][%cal Bg4f5,Bf5f6][%mdl 32]} Qf8 $2 {[%emt 0:07:22][%mdl 8192] Loses the game.} (27... gxf5 $17 {keeps the pressure on. Strongly threatening ...Qg5.} 28. Nxf5 Nxf5 29. Qxf5 Be5) 28. f6 $40 {[%emt 0:01:26][%mdl 128] White has strong attack.} Nf5 $2 {[%emt 0:00:23]} (28... Ra7 {was worth a try.}) 29. Nxf5 {[%emt 0:00:22]} gxf5 {[%emt 0:00:07]} 30. Qxf5 {[%emt 0:01:00] [#] Threatening mate with f7+.} Qf7 {[%emt 0:00:42]} 31. Rbe1 {[%emt 0:00:43] White wants to mate with Re7.} Rf8 {[%emt 0:01:48]} (31... Qxf6 $142 32. Qxf6 Bxf6 33. Rxf6 Rd8) 32. Re7 {[%emt 0:01:48]} Qxf6 {[%emt 0:02:44]} 33. Qxh7# {Weighted Error Value: White=0.25 (precise) /Black=0.76.  Loses game:     	---       	Black=1      Mistake:       	White=4     	Black=3      Inaccurate:     	White=1     	Black=5      OK:         	White=9     	Black=7      Best:        	White=3     	Black=4      Brilliant:      	---       	Black=1} 1-0

[Event "ESP-ch U2000 2024"]
[Site "Albacete"]
[Date "2024.08.27"]
[Round "1.7"]
[White "Martinez Martin, Francisco"]
[Black "Lopez Ruiz, Jarein"]
[Result "0-1"]
[ECO "A01"]
[WhiteElo "1832"]
[BlackElo "1970"]
[Annotator "TA"]
[PlyCount "52"]
[EventDate "2024.08.27"]
[EventType "swiss"]
[EventCountry "ESP"]
[SourceTitle "playchess.com"]
[Source "ChessBase"]
[SourceQuality "1"]
[TimeControl "5400+30"]

{[%evp 9,52,-30,-19,-25,-20,-65,-28,-29,-19,-41,-35,-37,-30,-33,-24,-33,-24,-68,-45,-108,-91,-94,-61,-181,-162,-205,-217,-266,-271,-288,-138,-205,-196,-197,-186,-317,-317,-308,-292,-391,-380,-490,-366,-399,-402]} 1. b3 {[%emt 0:00:06]} Nf6 {[%emt 0:00:23]} 2. Bb2 {[%emt 0:00:32]} g6 {[%emt 0:00:06]} 3. Bxf6 {[%emt 0:00:21]} exf6 {[%emt 0:00:06]} 4. Nf3 {[%emt 0:00:28]} f5 {[%emt 0:00:27]} 5. e3 {[%emt 0:00:21]} Bg7 {[%emt 0:00:20]} 6. d4 {[%emt 0:01:29]} O-O {[%emt 0:00:45]} 7. Bd3 {[%emt 0:00:15]} d6 {[%emt 0:04:12]} (7... c5 $5) 8. O-O {[%emt 0:00:12] Black has an edge.} Nd7 {[%emt 0:00:45]} 9. Nbd2 {[%emt 0:01:06]} Nf6 {[%emt 0:00:37]} 10. c4 {[%emt 0:00:41]} Re8 {[%emt 0:01:13]} 11. Qc2 {[%emt 0:01:29]} Qe7 {[%emt 0:01:06]} 12. Rae1 {[%emt 0:05:31]} Ne4 {[%emt 0:00:35]} 13. h3 {[%emt 0:00:33]} c6 {[%emt 0:13:06] Black is more active.} 14. Bxe4 {[%emt 0:05:25]} (14. Nb1 $15) 14... fxe4 $17 {[%emt 0:00:08]} 15. Nh2 {[%emt 0:00:11]} c5 {[%emt 0:08:07]} 16. f3 {[%emt 0:05:30]} (16. dxc5 $15 dxc5 17. f3) 16... cxd4 $19 {[%emt 0:01:59]} 17. Qxe4 {[%emt 0:08:14]} dxe3 {[%emt 0:03:09]} 18. Qxe7 {[%emt 0:03:36]} Rxe7 {[%emt 0:00:10]} 19. Ne4 {[%emt 0:01:22]} Bf5 {[%emt 0:17:55]} (19... f5 $19 20. Nxd6 Be6) 20. Re2 {[%emt 0:06:46]} (20. Ng4 $17 {might work better.}) 20... Bxe4 {[%emt 0:11:42]} 21. fxe4 {[%emt 0:00:08]} Rxe4 {[%emt 0:00:09][%cal Ob7b5]} 22. Ng4 {[%emt 0:03:17]} (22. Rd1 $142) 22... f5 {[%emt 0:01:25]} 23. Nh2 {[%emt 0:00:41] [#]} b5 $1 {[%emt 0:04:16]} 24. Rc1 {[%emt 0:02:11]} (24. cxb5 d5) 24... bxc4 {[%emt 0:02:40]} 25. Rxc4 {[%emt 0:02:38]} Rxc4 {[%emt 0:00:28]} 26. bxc4 {[%emt 0:00:04]} Rc8 {[%emt 0:00:24] Weighted Error Value: White=0.48/Black=0.23 (precise) .  Mistake:       	White=4     	Black=1      Inaccurate:     	White=3     	Black=2      OK:         	White=5     	Black=9      Best:        	---       	Black=1} 0-1

[Event "ESP-ch U2000 2024"]
[Site "Albacete"]
[Date "2024.08.27"]
[Round "1.8"]
[White "Reig Albero, Ferran"]
[Black "Ainsa Jimenez, Lucas"]
[Result "1/2-1/2"]
[ECO "B10"]
[WhiteElo "1969"]
[BlackElo "1823"]
[Annotator "TA"]
[PlyCount "79"]
[EventDate "2024.08.27"]
[EventType "swiss"]
[EventCountry "ESP"]
[SourceTitle "playchess.com"]
[Source "ChessBase"]
[SourceQuality "1"]
[TimeControl "5400+30"]

{[%evp 15,79,12,15,11,14,8,15,4,15,14,39,18,15,36,58,0,17,-7,-22,-16,-16,-4,-14,0,-27,-12,46,48,74,68,68,70,81,76,78,72,75,77,75,39,42,38,72,58,73,73,81,71,75,70,83,67,93,77,87,87,91,0,0,0,0,0,0,0,0,0]} 1. e4 {[%emt 0:00:05]} c6 {[%emt 0:00:06]} 2. Nc3 {[%emt 0:00:29]} d5 {[%emt 0:00:16]} 3. Nf3 {[%emt 0:00:32]} dxe4 {[%emt 0:00:11]} 4. Nxe4 {[%emt 0:00:26]} Nf6 {[%emt 0:00:06]} 5. Nxf6+ {[%emt 0:00:47]} exf6 {[%emt 0:00:08]} 6. d4 {[%emt 0:00:54]} Bd6 {[%emt 0:00:21]} 7. Bd3 {[%emt 0:01:08]} O-O {[%emt 0:00:14]} 8. O-O {[%emt 0:00:18]} Re8 {[%emt 0:00:21]} 9. h3 {[%emt 0:01:41]} Nd7 {[%emt 0:00:20]} 10. Bd2 {[%emt 0:07:21]} Nf8 {[%emt 0:00:28]} 11. c4 {[%emt 0:01:06]} Bc7 {[%emt 0:02:48]} 12. Qc2 {[%emt 0:05:02]} Qd6 {[%emt 0:02:32]} 13. Rad1 {[%emt 0:06:51]} Be6 {[%emt 0:01:40]} 14. Rfe1 {[%emt 0:04:47]} Rad8 {[%emt 0:01:02]} 15. Be3 {[%emt 0:05:25]} (15. Re3 $14) 15... Ng6 {[%emt 0:01:22]} 16. d5 {[%emt 0:08:33]} cxd5 {[%emt 0:20:58]} 17. cxd5 {[%emt 0:02:55]} Bxd5 {[%emt 0:02:19]} 18. Bxg6 {[%emt 0:02:52]} hxg6 {[%emt 0:00:32]} 19. Rxd5 {[%emt 0:00:49]} Qxd5 {[%emt 0:00:31]} 20. Qxc7 {[%emt 0:00:07]} Rd7 {[%emt 0:01:12]} ({Black should play} 20... Rc8 $11 21. Qf4 Re4) 21. Qc3 {[%emt 0:03:11]} Rde7 {[%emt 0:06:13]} 22. a3 {[%emt 0:02:42][%cal Ba2a3,Ba3a4,Ba4a5][%mdl 32]} a6 {[%emt 0:00:28]} 23. Rc1 {[%emt 0:00:32]} Rd7 {[%emt 0:07:27]} 24. Qc4 {[%emt 0:04:07]} Qd6 {[%emt 0:09:31]} 25. b4 {[%emt 0:04:23] Black is weak on the dark squares} Red8 {[%emt 0:10:28]} 26. a4 {[%emt 0:01:39]} Qb8 {[%emt 0:07:04]} 27. a5 {[%emt 0:03:51] White is much more active.} Rd1+ {[%emt 0:06:27]} 28. Ne1 {[%emt 0:00:41]} Rxc1 {[%emt 0:01:41]} 29. Qxc1 {[%emt 0:00:09]} ({Much weaker is} 29. Bxc1 Rd1 30. Kf1 b6 $14) 29... Rc8 {[%emt 0:01:11]} 30. Qd1 {[%emt 0:03:36]} Rd8 {[%emt 0:01:57]} 31. Qc2 {[%emt 0:04:59]} Qe5 {[%emt 0:00:32]} 32. Nf3 {[%emt 0:02:27]} Qe6 {[%emt 0:01:36]} 33. Nd4 {[%emt 0:02:48]} Qe5 {[%emt 0:00:40]} 34. Nb3 {[%emt 0:02:51]} (34. Qc4 {is more complex.} g5 35. g3 Qe4 36. Qc7) 34... Qb5 {[%emt 0:00:30]} 35. Bc5 {[%emt 0:02:21]} Qe8 {[%emt 0:01:40]} 36. Nd4 {[%emt 0:01:59]} (36. Kh2 $16) 36... Qe1+ $11 {[%emt 0:00:28] The position is equal.} 37. Kh2 {[%emt 0:00:55]} Qe5+ {[%emt 0:00:05]} 38. Kg1 {[%emt 0:00:36]} Qe1+ {[%emt 0:00:13]} 39. Kh2 {[%emt 0:00:12]} Qe5+ {[%emt 0:00:03]} 40. Kg1 {Weighted Error Value: White=0.12 (very precise) /Black=0.12 (very precise) .  Mistake:       	White=2     	Black=1      Inaccurate:     	White=1     	Black=3      OK:         	White=11    	Black=8      Best:        	White=2     	Black=4} 1/2-1/2

[Event "ESP-ch U2000 2024"]
[Site "Albacete"]
[Date "2024.08.27"]
[Round "1.9"]
[White "Izuzquiza Gonzalez, Javier"]
[Black "Benitez Fernandez, Martin Jesus"]
[Result "1-0"]
[ECO "E18"]
[WhiteElo "2002"]
[BlackElo "1968"]
[Annotator "TA"]
[PlyCount "93"]
[EventDate "2024.08.27"]
[EventType "swiss"]
[EventCountry "ESP"]
[SourceTitle "playchess.com"]
[Source "ChessBase"]
[SourceQuality "1"]
[TimeControl "5400+30"]

{[%evp 13,93,5,0,0,0,0,21,0,-1,-4,25,20,86,12,98,5,18,10,5,0,0,0,0,-34,0,0,0,-38,0,0,33,33,61,63,82,69,71,69,85,83,148,156,158,162,161,161,161,159,234,222,194,93,115,29,896,539,800,597,751,0,0,0,8,8,8,8,8,8,8,8,8,8,6133,5405,29971,29967,29983,29985,29987,29988,29990,29991]} 1. d4 {[%emt 0:00:07]} Nf6 {[%emt 0:00:10]} 2. Nf3 {[%emt 0:00:23]} e6 {[%emt 0:01:10]} 3. g3 {[%emt 0:00:26]} b6 {[%emt 0:02:32]} 4. Bg2 {[%emt 0:00:11]} Bb7 {[%emt 0:00:07]} 5. c4 {[%emt 0:01:27]} Be7 {[%emt 0:01:00]} 6. O-O {[%emt 0:00:21]} O-O {[%emt 0:00:47]} 7. Nc3 {[%emt 0:03:12]} Ne4 {[%emt 0:08:41]} 8. Re1 {[%emt 0:03:48][%cal Of3g5]} Nxc3 {[%emt 0:10:27]} 9. bxc3 {[%emt 0:00:03]} f5 {[%emt 0:03:28]} 10. Nd2 {[%emt 0:12:36] The position is equal.} Bxg2 {[%emt 0:05:16]} 11. Kxg2 {[%emt 0:00:08]} d6 {[%emt 0:00:38]} 12. e4 {[%emt 0:04:52]} Nd7 {[%emt 0:01:10]} (12... e5 $11 {remains equal.}) 13. Nf3 {[%emt 0:12:27]} (13. exf5 $16 exf5 14. Qf3) 13... Kh8 {[%emt 0:05:27]} (13... fxe4 $11 14. Rxe4 e5) 14. h4 {[%emt 0:09:06]} (14. exf5 $16 exf5 15. Qa4) 14... e5 {[%emt 0:07:28]} 15. dxe5 {[%emt 0:11:19]} fxe4 {[%emt 0:05:38]} 16. Rxe4 {[%emt 0:00:39]} dxe5 {[%emt 0:09:19]} 17. Qe2 {[%emt 0:05:56][%cal Oc1g5]} (17. Nxe5 {simplifies} Nxe5 18. Qxd8 Raxd8 19. Rxe5 Bf6 20. Rd5) 17... Bd6 {[%emt 0:04:05]} 18. Ng5 {[%emt 0:07:45]} Qf6 {[%emt 0:01:30] Prevents Ne6.} 19. Qc2 {[%emt 0:04:23][%cal Oe4f4]} g6 {[%emt 0:05:23] And now ...h6 would win.} ({Don't go for} 19... h6 $2 20. Rf4 hxg5 21. Rxf6 Rxf6 22. Bxg5 $18 (22. hxg5 Re6 $18)) 20. Qe2 {[%emt 0:08:43]} Bc5 {[%emt 0:08:34]} (20... h6 {simplifies} 21. Nh3 Qg7 22. Re3 Rae8) 21. Be3 {[%emt 0:00:58]} Bxe3 {[%emt 0:01:40]} (21... Qc6 $5 22. f3 $8 Bd6 $11) 22. Rxe3 {[%emt 0:00:14]} Nc5 {[%emt 0:01:59]} 23. Re1 {[%emt 0:05:51]} Rae8 {[%emt 0:01:52]} 24. Rxe5 {[%emt 0:00:28]} Rxe5 {[%emt 0:00:31]} 25. Qxe5 {[%emt 0:00:03]} Qxe5 {[%emt 0:00:13]} 26. Rxe5 {[%emt 0:00:04]} Rxf2+ {[%emt 0:00:17]} 27. Kxf2 $16 {[%emt 0:01:03]} Nd3+ {[%emt 0:00:01]} 28. Ke3 {[%emt 0:00:28]} Nxe5 $18 {[%emt 0:00:09][%mdl 4096] Endgame. KN-KN} 29. Kd4 {[%emt 0:00:43]} Ng4 {[%emt 0:02:20] [#]} 30. c5 $1 {[%emt 0:03:14]} c6 {[%emt 0:03:28]} (30... Kg8 $16 {was worth a try.} 31. c6 (31. Ne6 bxc5+ 32. Kxc5 Nf6 $16) 31... Kf8 32. Nxh7+ Ke7) 31. Ne6 {[%emt 0:00:40] a4 would now be deadly.} Nh6 {[%emt 0:01:02]} 32. Nd8 {[%emt 0:01:53]} (32. cxb6 $18 {is more deadly.} axb6 33. Ke5) 32... Nf5+ $16 {[%emt 0:00:27]} 33. Kc4 {[%emt 0:00:13]} (33. Ke5 $16 bxc5 34. Nxc6) 33... Ne7 {[%emt 0:03:02][%mdl 8192]} (33... Nxg3 $11 34. Nxc6 Ne4) 34. a4 {[%emt 0:00:49]} Kg7 {[%emt 0:00:19]} 35. cxb6 {[%emt 0:01:42]} ({Worse is} 35. g4 Kf8 $15) 35... axb6 {[%emt 0:00:02] [#]} 36. Ne6+ {[%emt 0:00:16]} (36. Nxc6 $1 $18 Nxc6 37. Kb5) 36... Kf6 $11 {[%emt 0:00:37]} 37. Nf8 {[%emt 0:00:08]} b5+ {[%emt 0:01:20]} 38. axb5 {[%emt 0:00:08]} cxb5+ {[%emt 0:00:01]} 39. Kxb5 {[%emt 0:00:14]} h5 {[%emt 0:02:06]} 40. c4 {[%emt 0:00:41][%cal Bc3c4,Bc4c5,Bc5c6,Bc6c7][%mdl 32]} Kf5 {[%emt 0:03:57]} 41. c5 {[%emt 0:01:40]} Kg4 {[%emt 0:00:16]} 42. c6 {[%emt 0:00:20]} Kxg3 $2 {[%emt 0:00:50][%mdl 8192]} (42... Nxc6 $11 43. Kxc6 g5) 43. c7 $18 {[%emt 0:00:05]} g5 {[%emt 0:01:53]} 44. hxg5 {[%emt 0:01:20][%cal Bh4g5,Bg5g6,Bg6g7][%mdl 32] White mates.} Kf4 {[%emt 0:00:45]} 45. g6 {[%emt 0:00:49]} h4 {[%emt 0:00:13][%cal Bh5h4,Bh4h3][%mdl 32]} 46. g7 {[%emt 0:00:04]} h3 {[%emt 0:00:14] [#]} 47. Ng6+ $1 {[%emt 0:00:54][%mdl 512] Weighted Error Value: White=0.57/Black=0.37.  Loses game:     	---       	Black=2      Mistake:       	White=4     	Black=4      Inaccurate:     	White=3     	Black=6      OK:         	White=10    	Black=13     Best:        	White=2     	Black=3      Strong:       	White=1     	---} 1-0

[Event "ESP-ch U2000 2024"]
[Site "Albacete"]
[Date "2024.08.27"]
[Round "2.1"]
[White "Gutierrez Marco, Dario"]
[Black "Martinez De Soria Gordon, Jose Manuel"]
[Result "1/2-1/2"]
[ECO "A05"]
[WhiteElo "1988"]
[BlackElo "1882"]
[Annotator "TA"]
[PlyCount "142"]
[EventDate "2024.08.27"]
[EventType "swiss"]
[EventCountry "ESP"]
[SourceTitle "playchess.com"]
[Source "ChessBase"]
[SourceQuality "1"]
[TimeControl "5400+30"]

{[%evp 9,142,10,33,35,36,22,27,18,36,13,46,41,48,18,34,13,16,18,27,1,17,10,6,-17,25,14,78,8,6,0,0,-19,-18,-17,9,7,12,0,31,0,0,0,26,4,39,27,94,26,249,220,202,128,120,125,149,138,133,150,131,89,82,91,77,87,125,125,132,116,123,105,102,100,116,116,116,116,116,116,150,116,116,116,116,109,182,116,116,116,116,116,116,116,116,21,21,21,27,28,26,30,37,27,15,12,41,61,292,292,293,282,275,210,166,0,0,0,0,0,0,0,0,0,0,0,0,0,0,0,0,0,0,0,0,0,0]} 1. Nf3 {[%emt 0:00:09]} Nf6 {[%emt 0:00:18]} 2. g3 {[%emt 0:00:05]} b6 {[%emt 0:00:09]} 3. Bg2 {[%emt 0:00:07]} Bb7 {[%emt 0:00:02]} 4. b3 {[%emt 0:00:15]} e5 {[%emt 0:01:33]} 5. d3 {[%emt 0:00:49]} Be7 {[%emt 0:01:48]} 6. O-O {[%emt 0:00:41]} d6 {[%emt 0:00:12]} 7. Bb2 {[%emt 0:00:33]} O-O {[%emt 0:00:11]} 8. e4 {[%emt 0:00:32] White has an edge.} a5 {[%emt 0:01:07]} 9. a4 {[%emt 0:00:22]} Na6 {[%emt 0:02:37]} 10. Nfd2 {[%emt 0:02:50]} Nc5 {[%emt 0:00:49]} 11. f4 {[%emt 0:04:46]} Nfd7 {[%emt 0:04:57]} 12. fxe5 {[%emt 0:09:11]} dxe5 {[%emt 0:00:34]} 13. Nc4 {[%emt 0:00:19]} (13. Qg4 {keeps more tension.} Re8 14. Nc4 f6 15. Nba3) 13... f6 {[%emt 0:02:21]} 14. Bh3 {[%emt 0:11:20]} Rf7 {[%emt 0:04:27]} 15. Ne3 {[%emt 0:02:48]} (15. Qh5 {is more complex.} Qe8 16. Rf2 Nf8 17. Ba3) 15... Nf8 {[%emt 0:01:52]} 16. Nc3 {[%emt 0:05:10]} Bc8 {[%emt 0:02:27]} 17. Nf5 {[%emt 0:02:12]} Bxf5 {[%emt 0:05:45]} (17... Ng6 $11 {keeps the balance.}) 18. Bxf5 {[%emt 0:00:37]} (18. Rxf5 Nce6 $11) (18. exf5 $16 {Hoping for Bg2.} c6 19. Qe2) 18... Nce6 $11 {[%emt 0:02:39]} 19. Nd5 {[%emt 0:02:15]} Bc5+ {[%emt 0:02:31]} 20. Kg2 {[%emt 0:00:12]} c6 {[%emt 0:03:48]} 21. Nc3 {[%emt 0:00:38]} Nd4 {[%emt 0:05:09]} 22. Bh3 {[%emt 0:00:22]} Re7 {[%emt 0:02:20]} 23. Ne2 {[%emt 0:01:39]} Nfe6 {[%emt 0:02:49]} 24. c3 {[%emt 0:03:23]} Nxe2 {[%emt 0:00:24]} 25. Qxe2 {[%emt 0:00:01]} Ng5 {[%emt 0:00:39]} 26. Bg4 {[%emt 0:00:33]} Nf7 {[%emt 0:04:09]} 27. Rad1 {[%emt 0:01:04]} Nh6 {[%emt 0:00:49]} (27... Qe8 $11) 28. Bh3 {[%emt 0:00:13]} (28. d4 $16 exd4 29. cxd4) 28... Qd6 {[%emt 0:00:31]} (28... Nf7 $11) 29. d4 $18 {[%emt 0:06:17]} exd4 {[%emt 0:00:12]} 30. cxd4 {[%emt 0:00:03]} Bb4 {[%emt 0:00:48]} 31. Qc4+ {[%emt 0:00:12]} Kh8 {[%emt 0:00:18]} 32. e5 {[%emt 0:00:19]} Qd5+ {[%emt 0:02:31]} 33. Qxd5 {[%emt 0:00:49]} cxd5 {[%emt 0:00:02]} 34. exf6 {[%emt 0:00:08]} Re2+ {[%emt 0:01:09]} 35. Rf2 {[%emt 0:00:05]} Rxf2+ {[%emt 0:00:14]} 36. Kxf2 {[%emt 0:00:06]} gxf6 {[%emt 0:00:08][%cal Bg7f6,Bf6f5,Bf5g4][%mdl 32]} 37. Rc1 {[%emt 0:00:25]} f5 {[%emt 0:02:17]} 38. Rc6 {[%emt 0:00:40][%csl LRb6,LRh6]} Ng4+ {[%emt 0:00:15]} 39. Bxg4 {[%emt 0:04:42]} fxg4 $16 {[%emt 0:00:03][%mdl 4096] Endgame. [#] KRB-KRB} 40. Bc1 $1 {[%emt 0:00:08][%cal Oc1f4]} ({Much worse is} 40. Rxb6 $6 Rc8 41. Re6 (41. Ke3 $2 Rc2 $19) 41... Kg8 $11 (41... Rc2+ 42. Re2 $14)) 40... Rf8+ {[%emt 0:01:36] [#]} 41. Ke2 $1 {[%emt 0:01:31]} Rf3 {[%emt 0:02:21]} 42. Be3 {[%emt 0:00:28]} Kg7 {[%emt 0:01:40]} 43. Rxb6 {[%emt 0:02:20]} h5 {[%emt 0:00:01]} 44. Rb7+ {[%emt 0:01:46]} Kg6 {[%emt 0:00:16]} 45. Rd7 {[%emt 0:00:14]} Rf5 {[%emt 0:00:10]} 46. Bf4 {[%emt 0:00:45] White is more active.} Ba3 {[%emt 0:01:43]} (46... h4 $16 47. Rd8 Kh7) 47. Ra7 {[%emt 0:00:58]} (47. Be5 $18) 47... Bb4 {[%emt 0:01:21]} 48. Ra6+ {[%emt 0:00:10]} Kf7 {[%emt 0:00:17]} 49. Rc6 {[%emt 0:01:22]} Ke7 {[%emt 0:00:38]} 50. Kd3 {[%emt 0:01:10]} Kd7 {[%emt 0:00:23]} 51. Rc2 {[%emt 0:01:18]} ({White should play} 51. Rh6 $16) 51... Bd6 $11 {[%emt 0:01:32]} 52. Ke3 {[%emt 0:01:17]} Rf6 {[%emt 0:04:55]} 53. Rf2 {[%emt 0:01:08] Black must now prevent Bxd6.} Bxf4+ {[%emt 0:01:17]} 54. Rxf4 {[%emt 0:00:07] KR-KR} Rb6 {[%emt 0:00:13]} 55. Rf5 {[%emt 0:00:12][%csl LRd5,LRh5]} Rxb3+ {[%emt 0:00:22]} 56. Kf4 {[%emt 0:00:13]} Ke6 {[%emt 0:04:54] ( -> ...Rf3+)} 57. Rxh5 {[%emt 0:00:14] And now Rh6+ would win.} Rf3+ $2 {[%emt 0:00:18]} (57... Rb4 $14) 58. Kxg4 $18 {[%emt 0:00:11]} Rd3 {[%emt 0:00:06]} 59. Rf5 {[%emt 0:02:01] Rf4 is the strong threat.} ({Weaker is} 59. Rh6+ Ke7 $11) 59... Rxd4+ {[%emt 0:01:19]} 60. Rf4 {[%emt 0:00:00]} Rb4 {[%emt 0:04:13]} 61. Kf3 $2 {[%emt 0:01:45]} (61. h4 $18) 61... d4 $11 {[%emt 0:00:18] The position is equal.} 62. Ke4 {[%emt 0:01:06]} Rxa4 {[%emt 0:00:08]} 63. Rf3 {[%emt 0:00:36]} d3+ {[%emt 0:01:05]} 64. Ke3 $1 {[%emt 0:00:32]} Ra2 {[%emt 0:01:15]} 65. Rf4 {[%emt 0:00:23]} Rxh2 {[%emt 0:00:56]} 66. Kxd3 {[%emt 0:00:11]} Rg2 {[%emt 0:00:46]} 67. g4 {[%emt 0:00:40]} Rg3+ {[%emt 0:00:42]} 68. Kc2 {[%emt 0:00:24]} Kd6 {[%emt 0:02:11]} 69. Rf6+ {[%emt 0:00:27]} Ke5 {[%emt 0:00:14]} 70. Rf5+ {[%emt 0:00:02]} Ke4 {[%emt 0:00:16]} 71. Rxa5 {[%emt 0:00:07]} Rxg4 {Weighted Error Value: White=0.18 (very precise) /Black=0.30.  Loses game:     	---       	Black=2      Missed win:     	White=1     	---        Mistake:       	White=4     	Black=3      Inaccurate:     	White=5     	Black=8      OK:         	White=25    	Black=27     Best:        	White=3     	Black=6      Strong:       	White=3     	---} 1/2-1/2